fUSD/lending_fUSD_20251225
["ID","MTS","AMOUNT","RATE_DAILY","PERIOD"]
[399738062,1766646513521,-517.16366944,0.00010708,2]
[399738063,1766646513563,-522.9845777,0.00010708,2]
[399738064,1766646513603,-522.9845777,0.00010708,2]
[399738065,1766646513642,-522.9845777,0.00010708,2]
[399738066,1766646513680,-522.9845777,0.00010708,2]
[399738067,1766646513720,-469.31266758,0.00010708,2]
[399738068,1766646513906,-53.67191012,0.00010708,2]
[399738069,1766646513951,-522.9845777,0.00010708,2]
[399738070,1766646513994,-522.9845777,0.00010708,2]
[399738071,1766646514038,-522.9845777,0.00010708,2]
[399738072,1766646514082,-522.9845777,0.00010708,2]
[399738073,1766646514125,-522.9845777,0.00010708,2]
[399738074,1766646514170,-522.9845777,0.00010708,2]
[399738075,1766646514219,-522.9845777,0.00010708,2]
[399738076,1766646514263,-522.9845777,0.00010708,2]
[399738077,1766646514305,-522.9845777,0.00010708,2]
[399738078,1766646514411,-522.9845777,0.00010708,2]
[399738079,1766646514454,-522.9845777,0.00010708,2]
[399738080,1766646514496,-522.9845777,0.00010708,2]
[399738081,1766646514539,-522.9845777,0.00010708,2]
[399738082,1766646514582,-522.9845777,0.00010708,2]
[399738083,1766646514623,-522.9845777,0.00010708,2]
[399738084,1766646514663,-522.9845777,0.00010708,2]
[399738085,1766646514708,-522.9845777,0.00010708,2]
[399738086,1766646514750,-522.9845777,0.00010708,2]
[399738087,1766646514796,-63.30302365,0.00010708,2]
[399738088,1766646515548,-459.6815541,0.00010708,2]
[399738089,1766646515588,-2640.25471617,0.00010708,2]
[399738090,1766646515633,-500.0,0.00010708,2]
[399738091,1766646515667,-150.0,0.00010708,2]
[399738092,1766646515702,-300.0,0.00010708,2]
[399738093,1766646515736,-500.0,0.00010709,2]
[399738094,1766646515772,-400.13745946,0.0001071,2]
[399738095,1766646516695,-99.86254054,0.0001071,2]
[399738096,1766646516705,-55.6507095,0.0001071,2]
[399738097,1766646516723,-444.3492905,0.0001071,2]
[399738098,1766646516733,-55.6507095,0.0001071,2]
[399738099,1766646516757,-150.0,0.0001071,2]
[399738100,1766646516782,-294.3492905,0.0001071,2]
[399738101,1766646516791,-5.6507095,0.0001071,2]
[399738102,1766646516808,-494.3492905,0.0001071,2]
[399738103,1766646516818,-5.6507095,0.0001071,2]
[399738104,1766646516836,-494.3492905,0.0001071,2]
[399738105,1766646516846,-5.6507095,0.0001071,2]
[399738106,1766646516920,-494.3492905,0.0001071,2]
[399738107,1766646516952,-200.0,0.0001071,2]
[399738108,1766646516986,-500.0,0.0001071,2]
[399738109,1766646517020,-500.0,0.0001071,2]
[399738110,1766646517053,-500.0,0.0001071,2]
[399738111,1766646517085,-500.0,0.0001071,2]
[399738112,1766646517118,-500.0,0.0001071,2]
[399738113,1766646517149,-500.0,0.0001071,2]
[399738114,1766646517180,-500.0,0.0001071,2]
[399738115,1766646517211,-500.0,0.0001071,2]
[399738116,1766646517243,-111.311419,0.0001071,2]
[399738117,1766646517333,-388.688581,0.0001071,2]
[399738118,1766646517367,-500.0,0.0001071,2]
[399738119,1766646517402,-500.0,0.0001071,2]
[399738120,1766646517435,-500.0,0.0001071,2]
[399738121,1766646517469,-500.0,0.0001071,2]
[399738122,1766646517502,-500.0,0.0001071,2]
[399738123,1766646517535,-500.0,0.0001071,2]
[399738124,1766646517568,-500.0,0.0001071,2]
[399738125,1766646517601,-500.0,0.0001071,2]
[399738126,1766646517632,-207.4,0.0001071,2]
[399738127,1766646517665,-151.0,0.0001071,2]
[399738128,1766646517697,-151.0,0.0001071,2]
[399738129,1766646517833,-279.59765788,0.0001071,2]
[399738130,1766646517864,-200.0,0.0001071,2]
[399738131,1766646517896,-151.0,0.0001071,2]
[399738132,1766646517929,-151.0,0.0001071,2]
[399738133,1766646517963,-151.0,0.0001071,2]
[399738134,1766646517996,-151.0,0.0001071,2]
[399738135,1766646518031,-151.0,0.0001071,2]
[399738136,1766646518065,-151.0,0.0001071,2]
[399738137,1766646518099,-151.0,0.0001071,2]
[399738138,1766646518132,-151.0,0.0001071,2]
[399738139,1766646518164,-151.0,0.0001071,2]
[399738140,1766646518197,-151.0,0.0001071,2]
[399738141,1766646518230,-151.0,0.0001071,2]
[399738142,1766646532051,-235.73486716,0.0001071,2]
[399738143,1766646532618,5393.24,0.00010517,2]
[399738144,1766646535827,-259.36606633,0.0001071,2]
[399738145,1766646538542,-341.16975742,0.0001071,2]
[399738146,1766646540386,166.50933193,0.0001061,2]
[399738147,1766646540678,-213.09068168,0.0001071,2]
[399738148,1766646541346,159.06535231,0.00010709,2]
[399738149,1766646541375,140.93464769,0.00010709,2]
[399738150,1766646541752,150.0,0.00010709,2]
[399738151,1766646542565,300.0,0.00010709,2]
[399738152,1766646542687,-313.01347322,0.0001071,2]
[399738153,1766646546956,9409.07535231,0.0001061,2]
[399738154,1766646546994,10000.01,0.0001061,2]
[399738155,1766646547026,10000.01,0.0001061,2]
[399738156,1766646547072,10000.01,0.0001061,2]
[399738157,1766646547104,10000.01,0.0001061,2]
[399738158,1766646547133,10000.01,0.0001061,2]
[399738159,1766646547170,10000.01,0.0001061,2]
[399738160,1766646547200,10000.01,0.0001061,2]
[399738161,1766646547231,10000.01,0.0001061,2]
[399738162,1766646550305,-279.82044178,0.0001061,2]
[399738163,1766646552267,-207.4,0.0001061,2]
[399738164,1766646553803,-191.90931832,0.0001061,2]
[399738165,1766646556568,-171.43121784,0.0001061,2]
[399738166,1766646558083,-162.96933339,0.0001061,2]
[399738167,1766646575991,-4281.19531576,0.0001061,2]
[399738168,1766646576305,-10000.01,0.0001061,2]
[399738169,1766646576438,-10000.01,0.0001061,2]
[399738170,1766646576573,-10000.01,0.0001061,2]
[399738171,1766646576689,-10000.01,0.0001061,2]
[399738172,1766646576796,-10000.01,0.0001061,2]
[399738173,1766646576921,-10000.01,0.0001061,2]
[399738174,1766646577085,-10000.01,0.0001061,2]
[399738175,1766646577226,-10000.01,0.0001061,2]
[399738176,1766646580099,-10000.01,0.0001061,2]
[399738177,1766646584598,-10000.01,0.0001061,2]
[399738178,1766646584620,-10000.01,0.0001061,2]
[399738179,1766646584639,-10000.01,0.0001061,2]
[399738180,1766646584669,-10000.01,0.0001061,2]
[399738181,1766646584767,-10000.01,0.0001061,2]
[399738182,1766646584879,-10000.01,0.0001061,2]
[399738183,1766646585057,-10000.01,0.0001061,2]
[399738184,1766646595413,-10000.01,0.0001061,2]
[399738185,1766646595542,-10000.01,0.0001061,2]
[399738188,1766646602444,-2500.0,0.0001051,2]
[399738189,1766646602477,-300.0,0.00010609,2]
[399738190,1766646602512,-1200.0,0.00010609,2]
[399738191,1766646602543,-300.0,0.00010609,2]
[399738192,1766646602662,-1400.01,0.0001061,2]
[399738193,1766646602697,-10000.01,0.0001061,2]
[399738195,1766646631623,-189397.52544517,0.0001061,2]
[399738196,1766646631687,-20444.10087418,0.0001061,2]
[399738200,1766646631997,-3556.59746186,0.0001061,2]
[399738201,1766646632009,-1525.2084021,0.0001061,2]
[399738202,1766646632020,-1432.6153019,0.0001061,2]
[399738204,1766646632032,-1090.32619314,0.0001061,2]
[399738206,1766646632047,-4387.67352384,0.0001061,2]
[399738207,1766646632059,-737.22721849,0.0001061,2]
[399738208,1766646637719,-2128.30687745,0.0001061,2]
[399738209,1766646637779,-1419.72595635,0.0001061,2]
[399738210,1766646637791,-1691.06524236,0.0001061,2]
[399738211,1766646637805,-17200.89889173,0.0001061,2]
[399738212,1766646637816,-281.55,0.0001061,2]
[399738213,1766646637827,-574.0,0.0001061,2]
[399738214,1766646637840,-314.06540004,0.0001061,2]
[399738215,1766646637864,-1319.6449995,0.0001061,2]
[399738216,1766646637881,-3375.5170958,0.0001061,2]
[399738217,1766646637905,-696.05560694,0.0001061,2]
[399738218,1766646637920,-462323.81452975,0.0001061,2]
[399738219,1766646637932,-237.0,0.0001061,2]
[399738220,1766646637947,-740.14339318,0.0001061,2]
[399738221,1766646637960,-1290.04665757,0.0001061,2]
[399738222,1766646637973,-151.0,0.0001071,2]
[399738223,1766646637985,-151.0,0.0001071,2]
[399738224,1766646637996,-23508.6648,0.00010711,2]
[399738225,1766646638007,-1000.0,0.00010711,2]
[399738226,1766646638017,-2857.5192,0.00010711,2]
[399738227,1766646638029,-1842.41014951,0.000109,2]
[399738228,1766646638040,-1000.0,0.0001091,2]
[399738229,1766646638052,-150.0,0.00010959,2]
[399738230,1766646638064,-150.0,0.00010994,2]
[399738231,1766646638075,-1000.0,0.00010994,2]
[399738233,1766646638087,-500.0,0.00011035,2]
[399738235,1766646638099,-19393.81,0.00011055,2]
[399738236,1766646638111,-9999.99,0.00011055,2]
[399738237,1766646638122,-49999.99,0.00011055,2]
[399738238,1766646638134,-9999.99,0.00011055,2]
[399738239,1766646638146,-299.99,0.00011055,2]
[399738240,1766646638157,-500.0,0.00011062,2]
[399738241,1766646638170,-500.0,0.0001109,2]
[399738242,1766646638183,-8752.24,0.00011099,2]
[399738243,1766646638195,-150.99,0.00011099,2]
[399738244,1766646638206,-95842.0,0.00011099,2]
[399738245,1766646638218,-150.99,0.00011099,2]
[399738246,1766646638229,-499.99,0.00011099,2]
[399738247,1766646638240,-309.16,0.00011099,2]
[399738248,1766646638251,-139721.63,0.00011099,2]
[399738249,1766646638262,-33135.16061479,0.00011099,2]
[399738250,1766646638272,-448.75068297,0.00011117,2]
[399738251,1766646638283,-9999.99,0.00011258,2]
[399738252,1766646638294,-9999.99,0.00011258,2]
[399738253,1766646638306,-999.99,0.00011258,2]
[399738254,1766646638317,-9999.99,0.00011258,2]
[399738255,1766646638329,-13938.24,0.00011258,2]
[399738256,1766646638340,-4999.99,0.00011258,2]
[399738257,1766646638351,-3168.57,0.00011258,2]
[399738258,1766646638363,-200.0,0.00011258,2]
[399738259,1766646638375,-500.0,0.00011258,2]
[399738260,1766646638388,-200.0,0.00011258,2]
[399738261,1766646638400,-231.40654288,0.00011299,2]
[399738262,1766646638411,-9135.11,0.00011309,2]
[399738263,1766646638422,-5695.12,0.00011309,2]
[399738264,1766646638433,-23338.72,0.00011309,2]
[399738265,1766646638445,-9999.99,0.00011309,2]
[399738266,1766646638456,-33135.16061473,0.00011309,2]
[399738267,1766646638468,-500.0,0.00011396,2]
[399738268,1766646638479,-500.0,0.00011396,2]
[399738269,1766646638490,-200.0,0.00011396,2]
[399738270,1766646638501,-500.0,0.00011396,2]
[399738271,1766646638515,-150.0,0.00011396,2]
[399738272,1766646638527,-500.0,0.00011396,2]
[399738273,1766646638538,-150.0,0.00011396,2]
[399738274,1766646638550,-150.0,0.00011396,2]
[399738275,1766646638562,-150.0,0.00011396,2]
[399738276,1766646638573,-500.0,0.00011396,2]
[399738277,1766646638585,-500.0,0.00011396,2]
[399738278,1766646638596,-500.0,0.00011396,2]
[399738279,1766646638607,-500.0,0.00011396,2]
[399738280,1766646638618,-500.0,0.00011423,2]
[399738281,1766646638629,-500.0,0.00011423,2]
[399738282,1766646638641,-174.82250522,0.00011423,2]
[399738283,1766646638652,-500.0,0.00011423,2]
[399738284,1766646638663,-500.0,0.00011423,2]
[399738285,1766646638674,-500.0,0.00011423,2]
[399738286,1766646638686,-500.0,0.00011423,2]
[399738287,1766646638697,-518.01684681,0.00011423,2]
[399738288,1766646638708,-27026.02,0.00011445,2]
[399738289,1766646638719,-500.0,0.00011451,2]
[399738290,1766646638731,-529.02857487,0.00011451,2]
[399738291,1766646638745,-350.0,0.00011451,2]
[399738292,1766646638757,-174.0,0.00011451,2]
[399738293,1766646638769,-335.94071721,0.00011451,2]
[399738294,1766646638780,-164.46343852,0.00011451,2]
[399738295,1766646638792,-500.0,0.00011478,2]
[399738296,1766646638804,-500.0,0.00011506,2]
[399738297,1766646638815,-16068.23,0.00011525,2]
[399738298,1766646638826,-402.48179652,0.00011533,2]
[399738299,1766646638838,-1500.0,0.00011549,2]
[399738300,1766646638849,-420.0,0.00011663,2]
[399738301,1766646638860,-420.0,0.00011663,2]
[399738302,1766646638871,-500.0,0.0001167,2]
[399738303,1766646638882,-300.0,0.0001167,2]
[399738304,1766646638893,-300.0,0.0001167,2]
[399738305,1766646638904,-1680.0,0.0001167,2]
[399738306,1766646638915,-250.0,0.00011671,2]
[399738307,1766646638927,-300.0,0.00011671,2]
[399738308,1766646638940,-500.0,0.00011686,2]
[399738309,1766646638957,-255.0,0.00011737,2]
[399738310,1766646638971,-1680.0,0.00011769,2]
[399738311,1766646638982,-300.0,0.0001177,2]
[399738312,1766646638993,-1216.27,0.00011775,2]
[399738313,1766646639004,-250.0,0.00011778,2]
[399738314,1766646639015,-193.0,0.00011778,2]
[399738315,1766646639025,-300.0,0.00011778,2]
[399738316,1766646639036,-250.0,0.00011781,2]
[399738317,1766646639047,-320726.68405187,0.00011781,2]
[399738318,1766646639058,-200.0,0.00011806,2]
[399738319,1766646639069,-500.0,0.00011806,2]
[399738320,1766646639081,-200.0,0.00011806,2]
[399738321,1766646639093,-2654.97,0.00011858,2]
[399738322,1766646639104,-507.31246157,0.00011944,2]
[399738323,1766646639117,-1698.19,0.00011948,2]
[399738324,1766646639128,-322.6107,0.00011948,2]
[399738325,1766646639139,-597.06,0.00011948,2]
[399738326,1766646639150,-500.0,0.00011948,2]
[399738327,1766646639160,-500.0,0.00011948,2]
[399738328,1766646639171,-500.0,0.00011948,2]
[399738329,1766646639182,-500.0,0.00011948,2]
[399738330,1766646639194,-500.0,0.00011948,2]
[399738331,1766646639204,-500.0,0.00011948,2]
[399738332,1766646639215,-500.0,0.00011948,2]
[399738333,1766646639226,-500.0,0.00011948,2]
[399738334,1766646639236,-500.0,0.00011948,2]
[399738335,1766646639247,-1500.0,0.00011948,2]
[399738336,1766646639257,-500.0,0.00011948,2]
[399738337,1766646639268,-500.0,0.00011948,2]
[399738338,1766646639278,-1500.0,0.00011948,2]
[399738339,1766646639289,-500.0,0.00011948,2]
[399738340,1766646639299,-1500.0,0.00011948,2]
[399738341,1766646639310,-500.0,0.00011948,2]
[399738342,1766646639321,-500.0,0.00011948,2]
[399738343,1766646639336,-500.0,0.00011948,2]
[399738344,1766646639347,-500.0,0.00011948,2]
[399738345,1766646639357,-1500.0,0.00011948,2]
[399738346,1766646639367,-500.0,0.00011948,2]
[399738347,1766646639378,-500.0,0.00011948,2]
[399738348,1766646639389,-1500.0,0.00011948,2]
[399738349,1766646639399,-500.0,0.00011948,2]
[399738350,1766646639412,-1500.0,0.00011948,2]
[399738351,1766646639423,-500.0,0.00011948,2]
[399738352,1766646639434,-200.0,0.00011948,2]
[399738353,1766646639445,-1255.94193517,0.00011948,2]
[399738354,1766646639456,-500.0,0.00011948,2]
[399738355,1766646639467,-207.4,0.00011948,2]
[399738356,1766646639478,-500.0,0.00011948,2]
[399738357,1766646639491,-215.0738,0.00011948,2]
[399738358,1766646639501,-250.0,0.00011948,2]
[399738359,1766646639512,-223.0315306,0.00011948,2]
[399738360,1766646639524,-250.0,0.00011948,2]
[399738361,1766646639535,-231.28369723,0.00011948,2]
[399738362,1766646639546,-250.0,0.00011948,2]
[399738363,1766646639557,-250.0,0.00011948,2]
[399738364,1766646639568,-239.84119403,0.00011948,2]
[399738365,1766646639579,-250.0,0.00011948,2]
[399738366,1766646639589,-248.71531821,0.00011948,2]
[399738367,1766646639600,-250.0,0.00011948,2]
[399738368,1766646639610,-257.91778498,0.00011948,2]
[399738369,1766646639621,-250.0,0.00011948,2]
[399738370,1766646639631,-267.46074303,0.00011948,2]
[399738371,1766646639642,-250.0,0.00011948,2]
[399738372,1766646639653,-277.35679052,0.00011948,2]
[399738373,1766646639664,-250.0,0.00011948,2]
[399738374,1766646639675,-250.0,0.00011948,2]
[399738375,1766646639686,-250.0,0.00011948,2]
[399738376,1766646639697,-33135.16061473,0.00012008,2]
[399738377,1766646639707,-1698.19,0.00012222,2]
[399738378,1766646639718,-200.0,0.00012354,2]
[399738379,1766646639728,-500.0,0.00012354,2]
[399738380,1766646639739,-200.0,0.00012354,2]
[399738381,1766646639749,-500.0,0.00012411,2]
[399738382,1766646639759,-1698.19,0.00012496,2]
[399738383,1766646639769,-1842.41014948,0.00012551,2]
[399738384,1766646639779,-600.0,0.00012559,2]
[399738385,1766646639789,-600.0,0.00012559,2]
[399738386,1766646639800,-398.62325352,0.00012651,2]
[399738387,1766646639816,-33135.16061473,0.00012707,2]
[399738388,1766646639827,-359.6,0.00012751,2]
[399738389,1766646639838,-152.35,0.00012752,2]
[399738390,1766646639850,-1698.19,0.0001277,2]
[399738391,1766646639862,-587.0,0.00012821,2]
[399738392,1766646639874,-587.0,0.00012821,2]
[399738393,1766646639885,-2351.0,0.00012837,2]
[399738394,1766646639897,-433.0,0.00012861,2]
[399738395,1766646639909,-200.0,0.00012902,2]
[399738396,1766646639920,-500.0,0.00012902,2]
[399738397,1766646639932,-200.0,0.00012902,2]
[399738398,1766646639943,-2351.0,0.00012937,2]
[399738399,1766646639955,-11179.0,0.0001294,2]
[399738400,1766646639966,-1698.19,0.00013044,2]
[399738401,1766646639977,-588.59210074,0.0001309,2]
[399738402,1766646639988,-194.0,0.0001326,2]
[399738403,1766646639999,-334.5472959,0.00013317,2]
[399738404,1766646640011,-287.61899177,0.00013317,2]
[399738405,1766646640022,-1698.19,0.00013318,2]
[399738406,1766646640033,-151.0,0.00013402,2]
[399738407,1766646640044,-33135.16061473,0.00013406,2]
[399738408,1766646640055,-150.0,0.00013424,2]
[399738409,1766646640067,-215.0738,0.00013449,2]
[399738410,1766646640080,-200.0,0.0001345,2]
[399738411,1766646640091,-500.0,0.0001345,2]
[399738412,1766646640102,-200.0,0.0001345,2]
[399738413,1766646640113,-243.72785085,0.00013451,2]
[399738414,1766646640124,-22894.24206833,0.00013474,2]
[399738415,1766646640135,-1698.19,0.00013592,2]
[399738416,1766646640153,-15044.79,0.00013666,2]
[399738417,1766646640164,-150.0,0.00013688,2]
[399738418,1766646640176,-500.0,0.00013698,2]
[399738419,1766646640188,-500.0,0.00013698,2]
[399738420,1766646640199,-500.0,0.00013698,2]
[399738421,1766646640210,-500.0,0.00013698,2]
[399738422,1766646640227,-500.0,0.00013698,2]
[399738423,1766646640239,-500.0,0.00013698,2]
[399738424,1766646640251,-296.93519622,0.00013698,2]
[399738425,1766646640263,-500.0,0.00013698,2]
[399738426,1766646640274,-500.0,0.00013698,2]
[399738427,1766646640285,-500.0,0.00013698,2]
[399738428,1766646640296,-500.0,0.00013698,2]
[399738429,1766646640306,-500.0,0.00013698,2]
[399738430,1766646640317,-500.0,0.00013698,2]
[399738431,1766646640329,-500.0,0.00013698,2]
[399738432,1766646640339,-500.0,0.00013698,2]
[399738433,1766646640350,-500.0,0.00013698,2]
[399738434,1766646640361,-500.0,0.00013698,2]
[399738435,1766646640372,-500.0,0.00013698,2]
[399738436,1766646640382,-500.0,0.00013698,2]
[399738437,1766646640394,-500.0,0.00013698,2]
[399738438,1766646640406,-500.0,0.00013698,2]
[399738439,1766646640417,-500.0,0.00013698,2]
[399738440,1766646640429,-500.0,0.00013698,2]
[399738441,1766646640439,-500.0,0.00013698,2]
[399738442,1766646640451,-500.0,0.00013698,2]
[399738443,1766646640462,-500.0,0.00013698,2]
[399738444,1766646640474,-500.0,0.00013698,2]
[399738445,1766646640486,-505.82761911,0.00013698,2]
[399738446,1766646640497,-500.0,0.00013698,2]
[399738447,1766646640507,-500.62299513,0.00013698,2]
[399738448,1766646640524,-500.0,0.00013698,2]
[399738449,1766646640535,-500.0,0.00013698,2]
[399738450,1766646640545,-500.0,0.00013698,2]
[399738451,1766646640556,-500.0,0.00013698,2]
[399738452,1766646640567,-500.0,0.00013698,2]
[399738453,1766646640579,-521.79,0.00013698,2]
[399738454,1766646640590,-521.79,0.00013698,2]
[399738455,1766646640602,-521.79,0.00013698,2]
[399738456,1766646640613,-521.79,0.00013698,2]
[399738457,1766646640624,-521.79,0.00013698,2]
[399738458,1766646640634,-500.0,0.00013698,2]
[399738460,1766646640645,-500.0,0.00013698,2]
[399738461,1766646640656,-500.0,0.00013698,2]
[399738462,1766646640667,-500.0,0.00013698,2]
[399738463,1766646640677,-500.0,0.00013698,2]
[399738464,1766646640688,-825.23,0.00013698,2]
[399738465,1766646640698,-825.23,0.00013698,2]
[399738466,1766646640709,-825.23,0.00013698,2]
[399738467,1766646640719,-825.23,0.00013698,2]
[399738468,1766646640730,-825.23,0.00013698,2]
[399738469,1766646640741,-610.34,0.00013698,2]
[399738470,1766646640752,-500.0,0.00013698,2]
[399738471,1766646640763,-610.34,0.00013698,2]
[399738472,1766646640773,-500.0,0.00013698,2]
[399738473,1766646640784,-610.34,0.00013698,2]
[399738474,1766646640795,-500.0,0.00013698,2]
[399738475,1766646640806,-610.34,0.00013698,2]
[399738476,1766646640817,-500.0,0.00013698,2]
[399738477,1766646640827,-610.34,0.00013698,2]
[399738478,1766646640838,-500.0,0.00013698,2]
[399738479,1766646640850,-500.0,0.00013698,2]
[399738480,1766646640865,-500.0,0.00013698,2]
[399738481,1766646640876,-500.0,0.00013698,2]
[399738482,1766646640888,-500.0,0.00013698,2]
[399738483,1766646640899,-500.0,0.00013698,2]
[399738484,1766646640910,-500.0,0.00013698,2]
[399738485,1766646640921,-500.0,0.00013698,2]
[399738486,1766646640932,-500.0,0.00013698,2]
[399738487,1766646640943,-500.0,0.00013698,2]
[399738488,1766646640954,-563.0266574,0.00013698,2]
[399738489,1766646640965,-500.0,0.00013698,2]
[399738490,1766646640976,-500.0,0.00013698,2]
[399738491,1766646640987,-500.0,0.00013698,2]
[399738492,1766646640999,-500.0,0.00013698,2]
[399738493,1766646641010,-500.0,0.00013698,2]
[399738494,1766646641022,-500.0,0.00013698,2]
[399738495,1766646641033,-500.0,0.00013698,2]
[399738496,1766646641048,-500.0,0.00013698,2]
[399738497,1766646641060,-595.20438035,0.00013698,2]
[399738498,1766646641072,-500.0,0.00013698,2]
[399738499,1766646641083,-500.0,0.00013698,2]
[399738500,1766646641095,-500.0,0.00013698,2]
[399738501,1766646641106,-500.0,0.00013698,2]
[399738502,1766646641117,-500.0,0.00013698,2]
[399738503,1766646641129,-500.0,0.00013698,2]
[399738504,1766646641140,-500.0,0.00013698,2]
[399738505,1766646641151,-500.0,0.00013698,2]
[399738506,1766646641163,-500.0,0.00013698,2]
[399738507,1766646641173,-500.0,0.00013698,2]
[399738508,1766646641184,-500.0,0.00013698,2]
[399738509,1766646641195,-500.0,0.00013698,2]
[399738510,1766646641206,-500.0,0.00013698,2]
[399738511,1766646641216,-500.0,0.00013698,2]
[399738512,1766646641227,-500.0,0.00013698,2]
[399738513,1766646641237,-500.0,0.00013698,2]
[399738514,1766646641248,-500.0,0.00013698,2]
[399738515,1766646641260,-500.0,0.00013698,2]
[399738516,1766646641271,-500.0,0.00013698,2]
[399738517,1766646641281,-500.0,0.00013698,2]
[399738518,1766646641291,-500.0,0.00013698,2]
[399738519,1766646641302,-500.0,0.00013698,2]
[399738520,1766646641312,-500.0,0.00013698,2]
[399738521,1766646641323,-500.0,0.00013698,2]
[399738522,1766646641334,-382.48973277,0.00013698,2]
[399738523,1766646641347,-500.0,0.00013698,2]
[399738524,1766646641358,-391.24830668,0.00013698,2]
[399738525,1766646641369,-500.0,0.00013698,2]
[399738526,1766646641379,-500.0,0.00013698,2]
[399738527,1766646641390,-500.0,0.00013698,2]
[399738528,1766646641401,-500.0,0.00013698,2]
[399738529,1766646641411,-500.0,0.00013698,2]
[399738530,1766646641422,-589.40226539,0.00013698,2]
[399738531,1766646641432,-500.0,0.00013698,2]
[399738532,1766646641444,-500.0,0.00013698,2]
[399738533,1766646641455,-500.0,0.00013698,2]
[399738534,1766646641465,-500.0,0.00013698,2]
[399738535,1766646641476,-174.76631411,0.00013698,2]
[399738536,1766646641491,-500.0,0.00013698,2]
[399738537,1766646641502,-500.0,0.00013698,2]
[399738538,1766646641514,-500.0,0.00013698,2]
[399738539,1766646641526,-500.0,0.00013698,2]
[399738540,1766646641537,-500.0,0.00013698,2]
[399738541,1766646641548,-500.0,0.00013698,2]
[399738542,1766646641561,-500.0,0.00013698,2]
[399738543,1766646641572,-500.0,0.00013698,2]
[399738544,1766646641584,-500.0,0.00013698,2]
[399738545,1766646641596,-500.0,0.00013698,2]
[399738546,1766646641608,-500.0,0.00013698,2]
[399738547,1766646641621,-500.0,0.00013698,2]
[399738548,1766646641632,-500.0,0.00013698,2]
[399738549,1766646642434,-568.74385845,0.00013698,2]
[399738550,1766646642457,-695.14,0.00013698,2]
[399738551,1766646642468,-695.14,0.00013698,2]
[399738552,1766646642478,-695.14,0.00013698,2]
[399738553,1766646642488,-695.14,0.00013698,2]
[399738554,1766646642499,-695.14,0.00013698,2]
[399738555,1766646642509,-500.0,0.00013698,2]
[399738556,1766646642519,-500.0,0.00013698,2]
[399738557,1766646642529,-500.0,0.00013698,2]
[399738558,1766646642539,-500.0,0.00013698,2]
[399738559,1766646642548,-500.0,0.00013698,2]
[399738560,1766646642558,-827.76,0.00013698,2]
[399738561,1766646642567,-827.76,0.00013698,2]
[399738562,1766646642582,-827.76,0.00013698,2]
[399738563,1766646642593,-827.76,0.00013698,2]
[399738564,1766646642603,-827.76,0.00013698,2]
[399738565,1766646642613,-321.45865313,0.00013698,2]
[399738566,1766646642624,-500.0,0.00013698,2]
[399738567,1766646642634,-500.0,0.00013698,2]
[399738568,1766646642645,-500.0,0.00013698,2]
[399738569,1766646642655,-500.0,0.00013698,2]
[399738570,1766646642665,-500.0,0.00013698,2]
[399738571,1766646642675,-500.0,0.00013698,2]
[399738572,1766646642685,-500.0,0.00013698,2]